bitfinex/quotes_ETHUSD_20260302
["timestamp","ask_amount","ask_price","bid_price","bid_amount"]
[1772468564905,0.0572066,2069.3,2068.7,1.35797341]
[1772468565100,1.4485348,2071.1,2068.9,3.85540973]
[1772468565101,4.90873634,2070.3,2068.9,3.85540973]
[1772468565306,3.70117449,2071.1,2069.2,3.92094573]
[1772468565549,3.70117449,2071.1,2069.3,0.947]
[1772468565704,3.70117449,2070.9,2069.1,0.947]
[1772468565903,3.70117449,2070.7,2068.9,0.947]
[1772468566202,3.70117449,2070.5,2068.5,1.20859112]
[1772468566408,3.70117449,2070.4,2068.5,1.20859112]
[1772468566642,3.70117449,2070.4,2068.6,0.947]
[1772468566845,1.176,2070.6,2068.6,0.947]
[1772468566846,3.70117449,2069.8,2068.6,0.947]
[1772468567013,4.90907901,2069.7,2068.6,2.15551483]
[1772468567540,1.20790452,2069.7,2068.6,2.15551483]
[1772468567739,8.47428029,2070.1,2068.6,2.15551483]
[1772468567740,1.20776985,2070.0,2068.7,0.14948499]
[1772468568064,3.64346125,2070.5,2069.0,0.065536]
[1772468568363,4.85066584,2070.9,2069.2,3.84482516]
[1772468568851,3.64346125,2070.8,2069.4,0.065536]
[1772468569214,4.85078244,2070.7,2069.4,1.20807963]
[1772468569712,1.20732119,2070.7,2069.5,0.946]
[1772468570025,1.20732119,2070.7,2069.6,0.947]
[1772468570917,1.20732119,2070.7,2069.4,1.20807963]
[1772468571245,3.64346125,2070.7,2069.5,2.15399002]
[1772468571441,3.64346125,2070.7,2069.5,0.946]
[1772468571608,3.64346125,2070.4,2069.5,0.946]
[1772468571812,3.64346125,2070.3,2069.5,0.946]
[1772468572006,3.64346125,2070.3,2069.5,0.8847934]
[1772468572254,3.64346125,2070.3,2069.1,0.946]
[1772468572407,3.64346125,2070.1,2068.9,0.946]
[1772468572613,3.64346125,2070.1,2068.5,1.20860526]
[1772468572614,3.64346125,2070.1,2068.5,0.946]
[1772468573057,3.64346125,2069.7,2068.2,0.946]
[1772468573338,3.64346125,2069.3,2068.2,0.946]
[1772468573935,3.64346125,2069.3,2067.8,2.154006]
[1772468574137,4.81946125,2069.2,2067.8,2.154006]
[1772468574331,4.81946125,2069.2,2067.7,6.39098085]
[1772468574332,3.64346125,2069.1,2067.7,1.55470304]
[1772468574734,3.04525353,2069.2,2067.1,0.945]
[1772468574735,3.64346125,2068.7,2067.1,0.945]
[1772468575050,4.81846125,2068.7,2067.2,3.62980417]
[1772468575346,1.20854684,2068.6,2067.3,1.20930682]
[1772468575952,4.85200809,2068.6,2067.3,1.20930682]
[1772468576118,1.20837159,2068.9,2067.4,3.62980417]
[1772468576542,0.065536,2068.7,2067.3,1.20930682]
[1772468576856,3.64346125,2068.5,2066.7,3.62980417]
[1772468577057,3.64346125,2068.5,2066.8,3.69534017]
[1772468577263,3.64346125,2068.5,2066.9,0.945]
[1772468577652,3.64346125,2068.5,2066.9,1.20954085]
[1772468577653,1.2086637,2068.4,2066.9,1.20954085]
[1772468577963,3.64346125,2068.3,2066.9,1.20954085]
[1772468578353,3.64346125,2068.3,2066.9,4.83934502]
[1772468578658,1.2086637,2068.4,2067.0,3.62980417]
[1772468578861,0.002,2068.3,2067.0,3.62980417]
[1772468579544,3.64546125,2068.3,2067.1,0.945]
[1772468579859,1.20878058,2068.2,2067.2,1.20936532]
[1772468580541,0.002,2068.3,2067.3,3.62980417]
[1772468580746,1.21061169,2068.5,2067.5,3.62980417]
[1772468581054,1.21061169,2068.5,2067.6,0.945]
[1772468581252,1.21061662,2068.5,2067.6,0.945]
[1772468581669,3.64346125,2069.7,2068.0,3.77928916]
[1772468581962,4.85140019,2069.7,2068.2,3.77928916]
[1772468582170,1.20793555,2069.7,2068.4,3.62980417]
[1772468582343,1.20788092,2069.8,2068.4,3.62980417]
[1772468582944,1.20767112,2070.1,2068.5,3.77928916]
[1772468583145,1.20767112,2070.1,2068.7,3.62980417]
[1772468583440,1.20763273,2070.2,2068.7,3.62980417]
[1772468583852,8.47321887,2070.5,2068.9,4.83817576]
[1772468584075,8.47321887,2070.5,2069.0,0.944]
[1772468584278,8.47321887,2070.5,2068.9,4.83817576]
[1772468584562,3.64346125,2070.4,2068.9,2.15237159]
[1772468585473,4.82975762,2070.5,2069.0,3.62980417]
[1772468585772,1.20732119,2070.7,2069.2,4.83800057]
[1772468585934,4.85078244,2070.7,2069.2,4.83800057]
[1772468586134,3.64346125,2070.6,2069.2,1.2081964]
[1772468586357,1.20732119,2070.7,2068.7,2.1524447]
[1772468586358,3.64346125,2070.3,2068.7,2.1524447]
[1772468586559,3.64346125,2070.1,2068.7,2.1524447]
[1772468586765,3.64346125,2070.1,2068.7,0.944]
[1772468587069,3.64346125,2070.1,2068.6,0.944]
[1772468587361,3.62110549,2070.1,2068.6,0.944]
[1772468587568,3.64346125,2070.4,2068.7,4.57380417]
[1772468587768,3.64346125,2070.4,2068.8,0.944]
[1772468587968,3.64346125,2070.2,2068.8,0.944]
[1772468588149,3.64346125,2070.2,2068.8,2.15242968]
[1772468588639,3.64346125,2070.2,2068.4,4.90018557]
[1772468588968,3.64346125,2070.2,2068.5,0.943]
[1772468588969,3.64346125,2070.1,2068.5,0.943]
[1772468589153,3.64346125,2069.7,2068.5,0.943]
[1772468589741,3.64346125,2069.7,2068.6,0.943]
[1772468589954,1.20796289,2069.6,2068.7,1.20848842]
[1772468590445,1.20772946,2070.0,2068.7,4.83829259]
[1772468590752,3.64346125,2069.9,2068.7,1.20848842]
[1772468590934,3.64346125,2069.8,2068.7,1.20848842]
[1772468592247,1.20790452,2069.7,2068.8,0.944]
[1772468592469,1.20790452,2069.7,2068.7,1.20848842]
[1772468592470,3.64346125,2069.6,2068.6,1.20852128]
[1772468592672,3.64346125,2069.6,2068.5,2.15256914]
[1772468592878,1.20790452,2069.7,2068.5,2.15256914]
[1772468593074,3.64346125,2069.6,2068.5,1.20856914]
[1772468593274,3.64346125,2069.6,2068.8,0.001]
[1772468594172,1.20802126,2069.5,2068.8,0.001]
[1772468594384,3.64346125,2069.4,2068.8,0.001]
[1772468594584,3.64346125,2069.4,2068.5,0.001]
[1772468594585,3.75327852,2069.3,2068.5,0.001]
[1772468595349,1.20802126,2069.5,2068.5,0.001]
[1772468595595,1.20802126,2069.5,2068.5,0.944]
[1772468595749,4.83075209,2070.1,2068.6,3.55060654]
[1772468595750,1.2078873,2069.8,2068.6,3.55060654]
[1772468595951,4.8309522,2070.0,2068.7,4.49360654]
[1772468596282,0.002,2070.2,2068.9,1.20837159]
[1772468596601,3.75527852,2070.2,2068.9,1.20837159]
[1772468596754,3.75527852,2070.2,2069.0,0.943]
[1772468597392,0.002,2070.2,2069.3,3.57136479]
[1772468597543,0.002,2070.4,2069.3,3.57136479]
[1772468597750,0.002,2070.4,2069.3,3.72084978]
[1772468598058,0.002,2070.4,2069.5,3.57136479]
[1772468598252,0.002,2070.4,2069.6,1.20796289]
[1772468598452,0.002,2070.4,2069.6,0.943]
[1772468598676,0.002,2070.4,2069.5,0.943]
[1772468599291,3.6406524,2070.4,2069.2,1.20815668]
[1772468599450,3.6406524,2070.4,2069.1,1.20821775]
[1772468600054,3.6406524,2070.4,2068.8,1.20838057]
[1772468600258,3.6386524,2070.2,2068.8,1.20838057]
[1772468600468,3.6386524,2070.2,2068.8,2.15142832]
[1772468600671,3.6386524,2070.2,2068.8,0.943]
[1772468600862,3.6386524,2070.2,2068.8,2.15142843]
[1772468601581,3.6386524,2070.2,2068.8,1.20842843]
[1772468601785,3.6386524,2070.2,2068.9,0.943]
[1772468601988,0.002,2070.4,2069.2,3.57136479]
[1772468602282,0.002,2070.4,2069.7,4.77926931]
[1772468602486,0.002,2070.4,2069.8,0.943]
[1772468602688,0.002,2070.4,2069.8,4.51436479]
[1772468602889,0.002,2070.7,2069.9,3.57136479]
[1772468603102,1.20706666,2071.2,2069.9,3.57136479]
[1772468603393,1.20706666,2071.2,2070.0,0.944]
[1772468603896,1.20706666,2071.2,2070.1,0.944]
[1772468604395,4.8279861,2071.3,2070.2,1.20761279]
[1772468604595,8.46644128,2071.4,2070.2,1.20761279]
[1772468604881,1.20697146,2071.3,2070.2,1.20761279]
[1772468605089,1.20697146,2071.3,2070.2,2.15161279]
[1772468605308,1.20697146,2071.3,2070.2,1.20761279]
[1772468605458,1.20694298,2071.4,2070.3,0.944]
[1772468605659,1.20694298,2071.4,2070.2,1.20761279]
[1772468605887,4.84559538,2071.4,2070.2,1.20761279]
[1772468606069,3.6386524,2071.3,2070.0,0.944]
[1772468606257,3.6386524,2071.1,2070.0,0.944]
[1772468606475,3.6386524,2070.8,2069.3,1.20811514]
[1772468606688,3.6386524,2070.6,2069.3,1.20911514]
[1772468608194,3.6406524,2071.0,2069.3,1.20911514]
[1772468608393,1.20720459,2070.9,2069.5,4.77938605]
[1772468608691,1.20720459,2070.9,2069.6,0.945]
[1772468608897,1.20720459,2070.9,2069.7,3.57136479]
[1772468609264,0.002,2071.0,2069.7,3.57136479]
[1772468609495,1.20918397,2071.0,2069.7,3.57136479]
[1772468610060,1.20918397,2071.0,2069.8,0.945]
[1772468610263,0.002,2071.0,2070.0,1.20772946]
[1772468610461,0.002,2071.0,2070.0,4.77909425]
[1772468610695,0.002,2071.5,2070.4,3.57136479]
[1772468611210,1.20886471,2071.5,2070.4,3.57136479]
[1772468611495,1.20886471,2071.5,2070.6,3.57136479]
[1772468611496,0.002,2071.5,2070.6,3.57136479]
[1772468611663,1.20886285,2071.5,2070.2,2.55294195]
[1772468611860,1.20886285,2071.5,2070.3,1.010536]
[1772468612059,1.20886285,2071.5,2070.4,3.57136479]
[1772468612496,0.002,2071.5,2070.6,3.57136479]
[1772468613060,0.002,2071.5,2070.7,0.945]
[1772468614694,0.002,2071.5,2070.8,1.20726289]
[1772468615088,0.002,2071.5,2070.9,0.945]
[1772468615292,4.82525573,2072.5,2071.0,3.63690079]
[1772468615589,1.20618942,2072.7,2071.0,3.63690079]
[1772468616099,1.20618942,2072.7,2071.2,4.07136479]
[1772468616595,1.20618942,2072.7,2071.4,3.57136479]
[1772468616990,3.6386524,2072.6,2071.4,0.945]
[1772468617197,1.20618942,2072.7,2071.4,0.945]
[1772468617490,3.6386524,2072.6,2070.9,4.82877321]
[1772468617717,3.6386524,2072.5,2070.9,2.15320459]
[1772468618010,3.6386524,2072.5,2070.9,1.20720459]
[1772468618169,3.6386524,2072.5,2071.0,0.946]
[1772468618368,3.6386524,2072.5,2070.9,1.20720459]
[1772468618698,3.6386524,2072.5,2070.7,0.945]
[1772468618699,3.6386524,2072.3,2070.7,0.945]
[1772468619070,3.6386524,2072.1,2070.7,0.945]
[1772468619282,3.6386524,2072.1,2070.6,1.2073795]
[1772468619566,3.6386524,2072.1,2070.6,2.1523795]
[1772468619785,3.6386524,2072.1,2070.7,0.945]
[1772468620309,3.6386524,2072.0,2070.3,0.945]
[1772468620510,3.6386524,2071.6,2070.3,0.945]
[1772468620713,3.6386524,2071.4,2070.3,0.945]
[1772468620874,3.6386524,2071.4,2069.4,1.20807963]
[1772468621200,1.169,2071.3,2069.4,4.77944442]
[1772468621407,3.6386524,2071.2,2069.4,4.77944442]
[1772468621627,3.6386524,2071.2,2069.5,0.946]
[1772468622127,3.6386524,2071.2,2070.8,0.001]
[1772468622427,3.6386524,2071.2,2069.4,1.20807963]
[1772468622592,3.6386524,2070.8,2070.5,0.001]
[1772468622778,3.6386524,2070.6,2069.3,1.2091216]
[1772468623207,4.8096524,2070.9,2069.3,1.2091216]
[1772468623412,3.6386524,2070.8,2069.4,0.945]
[1772468623724,1.20708802,2071.1,2069.5,3.57136479]
[1772468624088,3.6386524,2071.0,2069.5,3.57136479]
[1772468624415,1.20708802,2071.1,2069.6,4.51636479]
[1772468624606,8.46700448,2071.3,2069.8,1.20784616]
[1772468624805,8.46700448,2071.3,2069.9,0.945]
[1772468624806,3.6386524,2071.2,2069.9,0.945]
[1772468625578,3.6386524,2071.2,2069.8,1.20784616]
[1772468625866,3.6386524,2071.2,2069.5,1.20802126]
[1772468626022,4.82835208,2071.3,2069.6,3.63690079]
[1772468626309,1.20668018,2071.8,2070.2,3.57136479]
[1772468626512,1.20668018,2071.8,2070.4,1.20749613]
[1772468627113,1.20668018,2071.8,2070.5,0.945]
[1772468627414,1.20668018,2071.8,2070.5,4.47193579]
[1772468627983,1.20668018,2071.8,2070.5,3.52693579]
[1772468628179,3.42674897,2071.7,2070.3,1.2075141]
[1772468628383,4.59674897,2071.6,2070.3,2.1525141]
[1772468628581,1.20685493,2071.5,2070.3,2.1525141]
[1772468628786,1.20683412,2071.6,2070.4,3.52693579]
[1772468629486,1.20683412,2071.6,2070.5,0.945]
[1772468629688,1.20683412,2071.6,2070.4,3.52693579]
[1772468629923,1.20683412,2071.6,2070.5,0.945]
[1772468630500,4.82705401,2071.7,2070.4,3.52693579]
[1772468630702,3.42674897,2071.4,2070.3,0.945]
[1772468631017,3.42674897,2071.4,2070.1,1.20764242]
[1772468631520,3.73085358,2071.5,2070.1,4.73457821]
[1772468631819,3.73085358,2071.5,2070.2,0.945]
[1772468631820,7.15760255,2071.5,2070.2,0.945]
[1772468632121,4.82718671,2071.9,2070.2,0.945]
[1772468632322,3.42674897,2071.8,2070.3,3.52693579]
[1772468632627,3.42674897,2071.8,2070.3,4.47193579]
[1772468632814,1.20673842,2071.7,2070.4,1.20749613]
[1772468633342,1.20673842,2071.7,2070.4,4.73443192]
[1772468633700,3.42674897,2071.6,2070.5,0.946]
[1772468634601,1.20673842,2071.7,2070.5,0.946]
[1772468635117,4.63348739,2071.7,2070.3,4.82998454]
[1772468635321,4.63348739,2071.7,2070.6,0.946]
[1772468635824,4.63348739,2071.7,2070.6,0.947]
[1772468636022,0.002,2071.5,2070.6,0.947]
[1772468636324,0.002,2071.5,2070.6,0.001]
[1772468636525,0.002,2071.5,2070.7,0.946]
[1772468637016,3.42674897,2071.6,2070.6,0.001]
[1772468637224,1.20685493,2071.5,2070.6,2.15432693]
[1772468637722,1.20685493,2071.5,2070.6,0.947]
[1772468638023,1.20685493,2071.5,2070.6,2.1543711]
[1772468639127,0.002,2071.7,2070.8,1.20726289]
[1772468639713,3.42874897,2071.7,2070.6,2.15434263]
[1772468640105,3.42874897,2071.7,2070.6,0.947]
[1772468640301,3.42874897,2071.7,2070.6,0.001]
[1772468640514,3.42874897,2071.7,2070.6,1.20837847]
[1772468641029,3.42874897,2071.7,2070.4,0.001]
[1772468641234,3.42674897,2071.5,2070.4,0.001]
[1772468641528,1.20679667,2071.6,2070.4,0.001]
[1772468641529,3.42674897,2071.3,2070.4,0.001]
[1772468642437,3.42674897,2070.8,2069.2,4.83255207]
[1772468642646,3.42674897,2070.6,2069.3,1.20913424]
[1772468642810,1.171,2070.5,2069.3,1.20913424]
[1772468643013,3.42674897,2070.4,2069.3,0.001]
[1772468643344,3.42674897,2070.2,2069.3,0.001]
[1772468644154,4.59774897,2070.1,2069.3,0.001]
[1772468644294,3.42674897,2070.1,2069.3,0.001]
[1772468644496,1.171,2070.0,2069.3,0.001]
[1772468645226,1.20778781,2069.9,2069.3,0.001]
[1772468646250,3.42674897,2069.8,2069.0,0.001]
[1772468646442,3.42674897,2069.6,2068.5,0.001]
[1772468646651,3.42674897,2069.4,2068.5,0.001]
[1772468647225,3.42674897,2069.2,2066.9,3.52693579]
[1772468647565,3.42674897,2069.0,2067.3,3.52693579]
[1772468647781,1.20813801,2069.3,2067.7,3.52693579]
[1772468647782,2.38113801,2069.3,2067.7,3.52693579]
[1772468647978,1.20813801,2069.3,2067.9,3.52693579]
[1772468648130,2.3811149,2069.4,2067.9,3.52693579]
[1772468648645,1.20763954,2070.2,2068.3,3.52693579]
[1772468648830,3.42674897,2070.1,2068.4,0.065536]
[1772468649030,3.42674897,2069.9,2068.4,0.946]
[1772468649226,3.42674897,2069.7,2068.0,4.83548018]
[1772468649476,3.42674897,2069.7,2068.0,5.78148018]
[1772468649678,3.42674897,2069.5,2067.7,0.945]
[1772468649831,3.42674897,2069.3,2067.7,0.945]
[1772468650232,3.42674897,2069.3,2067.5,1.20915138]
[1772468650233,3.42674897,2069.2,2067.5,1.20915138]
[1772468650545,1.174,2069.4,2066.9,2.15451847]
[1772468650546,3.42674897,2068.7,2066.9,2.15451847]
[1772468650731,3.42674897,2068.5,2066.9,2.15451847]
[1772468651349,3.42674897,2068.5,2066.5,2.65891472]
[1772468651350,3.42674897,2068.3,2066.6,1.20971644]
[1772468651627,3.42674897,2068.2,2066.6,1.20971644]
[1772468652254,3.42674897,2068.2,2068.1,0.001]
[1772468652467,3.42674897,2068.2,2066.6,4.73665223]
[1772468652837,3.42674897,2068.2,2066.7,0.945]
[1772468653045,3.42674897,2068.2,2067.9,0.001]
[1772468653238,3.42674897,2068.2,2066.8,4.73653517]
[1772468653239,1.20878058,2068.2,2066.8,4.73653517]
[1772468653444,1.20878058,2068.2,2066.6,1.20970463]
[1772468653445,3.42674897,2068.1,2066.6,1.20970463]
[1772468653763,3.42674897,2068.1,2067.6,0.001]
[1772468653963,3.42674897,2068.1,2066.6,1.20970463]
[1772468654148,4.59974897,2068.1,2066.6,1.20970463]
[1772468655831,4.8371807,2068.0,2066.6,2.15470463]
[1772468656049,3.62828322,2067.9,2066.6,0.945]
[1772468656255,3.62828322,2067.9,2066.5,3.86866838]
[1772468656256,3.62828322,2067.9,2066.5,0.945]
[1772468656562,3.62828322,2067.9,2066.4,4.73672623]
[1772468656765,3.62828322,2067.9,2066.4,5.68172623]
[1772468657761,3.62828322,2067.9,2066.4,4.73672623]
[1772468657961,1.20901441,2067.8,2066.5,0.945]
[1772468658260,3.44585594,2067.7,2066.3,1.20985864]
[1772468658963,3.44585594,2067.7,2066.1,2.87151482]
[1772468659145,3.44585594,2067.7,2066.1,1.53671991]
[1772468659952,2.38113136,2067.6,2066.1,4.97592336]
[1772468660157,3.44585594,2067.5,2066.1,0.32672768]
[1772468660359,3.44585594,2067.5,2065.8,2.15518312]
[1772468660757,3.44585594,2067.3,2065.8,1.21018312]
[1772468660959,3.44585594,2067.3,2065.7,2.15420702]
[1772468661159,3.44585594,2067.3,2065.6,1.21027904]
[1772468661354,3.44585594,2067.2,2065.5,2.15433525]
[1772468661550,6.05959428,2066.8,2065.3,0.001]
[1772468661877,3.44585594,2066.4,2065.3,0.001]
[1772468662762,1.173,2066.4,2065.3,0.001]
[1772468663342,3.44585594,2066.3,2065.3,0.001]
[1772468663672,1.173,2066.4,2065.3,0.001]
[1772468664483,1.2098534,2066.4,2065.4,4.38320345]
[1772468664978,1.2098534,2066.4,2065.4,0.944]
[1772468665187,1.2098534,2066.4,2065.3,0.001]
[1772468665476,4.83898616,2066.6,2065.3,3.44020345]
[1772468665642,4.83898616,2066.6,2065.4,0.944]
[1772468665972,1.20958301,2066.9,2065.5,3.43920345]
[1772468666185,8.28332622,2067.2,2065.5,3.43920345]
[1772468666186,3.44585594,2067.2,2065.5,3.43920345]
[1772468666476,3.44585594,2067.2,2065.7,1.2102435]
[1772468666477,1.20942383,2067.1,2065.7,1.2102435]
[1772468666645,1.20942383,2067.1,2065.7,4.64944695]
[1772468666845,1.20942383,2067.1,2065.8,3.43920345]
[1772468667564,1.20924833,2067.4,2066.0,3.43920345]
[1772468667768,1.20924833,2067.4,2066.2,3.43920345]
[1772468667947,1.20924833,2067.4,2066.3,0.944]
[1772468668672,0.002,2067.5,2066.4,1.20983352]
[1772468669246,0.002,2067.5,2066.4,2.15383352]
[1772468670869,0.002,2067.5,2066.5,3.43920345]
[1772468671069,0.002,2067.5,2066.6,0.946]
[1772468671752,0.002,2067.5,2066.5,3.43920345]
[1772468671984,0.002,2067.5,2066.6,0.946]
[1772468672173,0.002,2067.5,2066.5,3.43920345]
[1772468672375,0.002,2067.5,2066.6,0.946]
[1772468672982,0.002,2067.5,2066.4,4.83909992]
[1772468673186,0.002,2067.5,2066.5,3.43920345]
[1772468675455,0.002,2067.5,2066.6,2.15571644]
[1772468675981,0.002,2067.5,2066.5,0.946]
[1772468676150,0.002,2067.5,2066.2,2.15592773]
[1772468676151,5.26628849,2067.3,2066.2,2.15592773]
[1772468676553,3.44585594,2067.2,2066.1,0.946]
[1772468676759,1.82043255,2067.0,2066.0,0.946]
[1772468676998,1.175,2067.1,2066.0,4.38520345]
[1772468677488,1.20948234,2067.0,2066.1,1.21000919]
[1772468678054,1.20948234,2067.0,2066.1,4.64921264]
[1772468678488,1.20934562,2067.3,2066.3,3.43920345]
[1772468678875,1.21123616,2067.5,2066.3,3.43920345]
[1772468679277,0.002,2067.5,2066.3,3.43920345]
[1772468679589,0.002,2067.5,2066.5,3.43920345]
[1772468679793,0.002,2067.7,2066.5,3.43920345]
[1772468680972,0.002,2067.7,2066.4,1.21083352]
[1772468680973,0.002,2067.7,2066.7,3.43920345]
[1772468681292,0.002,2067.4,2066.7,3.43920345]
[1772468681492,0.002,2067.7,2066.9,3.43920345]
[1772468681991,0.002,2067.6,2066.9,3.43920345]
[1772468682180,0.002,2067.6,2067.0,0.947]
[1772468682383,0.002,2067.6,2066.8,1.20959938]
[1772468682384,0.002,2067.6,2066.8,2.15659938]
[1772468684396,0.002,2067.6,2066.7,1.20962731]
[1772468684691,3.44785594,2067.6,2066.4,1.21082935]
[1772468684880,3.44785594,2067.6,2066.4,0.001]
[1772468685403,3.44785594,2067.6,2066.4,1.21083135]
[1772468685978,3.44785594,2067.6,2066.4,0.001]
[1772468686182,3.44585594,2067.4,2066.4,0.001]
[1772468686480,1.20918984,2067.5,2066.4,3.44020345]
[1772468687395,3.50720958,2067.4,2066.4,0.001]
[1772468688300,4.7165164,2067.3,2066.4,0.001]
[1772468688599,1.20930682,2067.3,2066.4,0.001]
[1772468688899,1.20930682,2067.3,2066.4,0.949]
[1772468689116,1.20930682,2067.3,2066.4,4.46966912]
[1772468689272,1.20930682,2067.3,2066.4,0.001]
[1772468690074,4.8372273,2067.4,2066.4,0.001]
[1772468690421,3.50720958,2067.3,2066.4,0.001]
[1772468691417,3.50720958,2067.0,2066.1,0.001]
[1772468691596,3.50720958,2066.8,2066.1,0.001]
[1772468692301,3.50720958,2066.6,2065.9,0.001]
[1772468693097,4.67920958,2066.6,2065.9,0.001]
[1772468694182,4.8367664,2067.5,2066.3,3.52066912]
[1772468694384,3.50720958,2067.4,2066.0,1.2100275]
[1772468694583,4.68020958,2067.4,2066.0,2.1550275]
[1772468694774,4.68020958,2067.4,2065.9,4.73174834]
[1772468694974,3.50720958,2067.3,2065.9,1.21112036]
[1772468695186,1.173,2067.2,2066.0,3.52066912]
[1772468696117,4.68020958,2067.3,2066.0,3.52066912]
[1772468696406,1.20936532,2067.2,2066.2,3.52066912]
[1772468696609,1.20936532,2067.2,2066.3,3.52066912]
[1772468696804,1.20936532,2067.2,2066.3,4.46666912]
[1772468698508,4.8374613,2067.4,2066.4,1.20983352]
[1772468698809,4.8394613,2067.4,2066.4,1.20983352]
[1772468699003,4.8394613,2067.4,2066.3,5.67651352]
[1772468699624,4.8394613,2067.4,2066.3,4.73051352]
[1772468699773,4.8394613,2067.4,2066.1,3.75556067]
[1772468699973,4.8394613,2067.4,2066.2,0.947]
[1772468700408,4.8394613,2067.4,2066.2,4.46766912]
[1772468700576,3.50720958,2067.3,2066.1,0.001]
[1772468701418,4.8394613,2067.4,2066.2,3.52066912]
[1772468701848,4.8394613,2067.4,2066.4,3.52066912]
[1772468702045,4.8394613,2067.4,2066.6,3.52066912]
[1772468702411,4.8394613,2067.4,2066.7,1.2096579]
[1772468702640,1.21124833,2067.4,2066.7,1.2096579]
[1772468702842,1.21124833,2067.4,2066.6,4.73033727]
[1772468703048,1.82066201,2067.2,2065.8,3.52066912]
[1772468703251,3.50720958,2067.1,2065.8,3.52066912]
[1772468703457,3.50720958,2067.1,2065.6,0.001]
[1772468703458,3.50720958,2066.8,2065.6,0.001]
[1772468704146,1.174,2066.8,2066.0,1.2100338]
[1772468704451,1.2096579,2066.7,2065.9,0.001]
[1772468704624,1.174,2066.8,2066.0,0.947]
[1772468704847,2.38364236,2066.8,2065.9,0.001]
[1772468705033,1.20964236,2066.8,2065.9,0.001]
[1772468705363,1.20942383,2067.1,2066.1,4.46866912]
[1772468705567,1.20942383,2067.1,2066.2,3.52066912]
[1772468705939,1.20942383,2067.1,2066.1,0.001]
[1772468706137,1.20942383,2067.1,2066.1,0.948]
[1772468706669,4.71663341,2067.1,2066.1,0.001]
[1772468706834,3.50720958,2067.0,2066.1,0.001]
[1772468707552,3.50720958,2067.0,2066.1,1.2109861]
[1772468707756,1.174,2067.0,2066.2,3.52066912]
[1772468708343,1.20942383,2067.1,2066.2,3.52066912]
[1772468708545,1.176,2067.4,2066.4,4.73050264]
[1772468708546,4.83734357,2067.3,2066.4,4.73050264]
[1772468708747,1.20930682,2067.3,2066.5,3.52066912]
[1772468708948,1.20930682,2067.3,2066.2,1.20995063]
[1772468709150,1.174,2067.2,2066.1,0.001]
[1772468709471,3.50720958,2067.1,2066.1,0.001]
[1772468710040,3.5046817,2067.1,2066.1,0.001]
[1772468710466,3.50720958,2066.9,2066.1,0.001]
[1772468710772,3.50720958,2066.9,2065.9,0.001]
[1772468712645,3.50720958,2066.7,2065.9,0.001]
[1772468712845,1.174,2066.6,2065.9,0.001]
[1772468713669,1.174,2066.6,2066.1,0.001]
[1772468714366,0.002,2066.7,2066.1,0.001]
[1772468714948,0.002,2066.7,2066.2,3.33045172]
[1772468715440,4.83969532,2067.2,2066.2,3.33045172]
[1772468715441,0.002,2067.2,2066.2,3.33045172]
[1772468715640,1.21136975,2067.2,2066.2,3.33045172]
[1772468715856,1.21136975,2067.2,2066.3,0.945]
[1772468716049,1.21136975,2067.2,2066.3,4.27545172]
[1772468716376,1.21136975,2067.2,2066.1,0.001]
[1772468716377,3.34591921,2067.1,2066.1,0.001]
[1772468716675,3.34591921,2066.5,2065.6,0.001]
[1772468716863,1.173,2066.4,2065.6,0.001]
[1772468717038,2.89150623,2066.3,2065.6,0.001]
[1772468717243,2.31320498,2066.7,2065.6,0.001]
[1772468717442,4.06387799,2066.6,2065.6,0.001]
[1772468717664,2.89087799,2066.5,2065.6,0.001]
[1772468717870,3.41833091,2066.4,2065.6,0.001]
[1772468718076,3.41833091,2066.2,2065.6,0.001]
[1772468718374,4.06387799,2066.1,2065.6,0.001]
[1772468718544,1.21006776,2066.0,2065.6,0.001]
[1772468718970,1.20982243,2066.5,2065.6,3.21186534]
[1772468719154,1.20982243,2066.5,2065.6,0.001]
[1772468719869,2.38382243,2066.5,2065.6,0.001]
[1772468720069,2.88967792,2066.4,2065.6,0.001]
[1772468720710,1.20989207,2066.3,2065.6,0.001]
[1772468721964,2.38489207,2066.3,2065.6,0.001]
[1772468722880,3.41833091,2066.8,2065.7,3.21086534]
[1772468722881,1.20959938,2066.8,2065.7,3.21086534]
[1772468723278,1.20959938,2066.8,2065.6,0.001]
[1772468723279,3.41833091,2066.6,2065.6,0.001]
[1772468723580,2.88884699,2066.5,2065.6,0.001]
[1772468723784,3.41833091,2066.4,2065.6,0.001]
[1772468723959,2.88884699,2066.3,2065.6,0.001]
[1772468724143,1.176,2066.2,2065.6,0.001]
[1772468724768,1.21000919,2066.1,2065.6,0.001]
[1772468724970,1.176,2066.2,2065.6,0.001]
[1772468725275,1.20996423,2066.2,2065.6,0.001]
[1772468725777,1.20991359,2066.3,2065.6,0.001]
[1772468726350,1.20988126,2066.4,2065.6,3.21186534]
[1772468727059,1.176,2066.5,2065.7,1.2102435]
[1772468727258,2.38577867,2066.5,2065.7,1.2102435]
[1772468727459,1.20977867,2066.5,2065.7,4.42110884]
[1772468727867,1.20977867,2066.5,2065.6,1.21127661]
[1772468728078,1.176,2066.4,2065.6,1.21130109]
[1772468728265,4.06394724,2066.4,2065.6,1.21130109]
[1772468728583,1.176,2066.4,2065.6,1.21128976]
[1772468729081,2.38588167,2066.4,2065.8,0.001]
[1772468729294,2.38585359,2066.4,2065.8,0.001]
[1772468729458,0.002,2066.3,2065.8,0.001]
[1772468731362,3.41833091,2066.2,2065.6,0.001]
[1772468731566,2.8891178,2066.1,2065.6,0.001]
[1772468731777,1.178,2066.0,2065.6,0.001]
[1772468733188,1.21012633,2065.9,2065.6,0.001]
[1772468733556,1.21012633,2065.9,2065.5,0.001]
[1772468733762,1.21012633,2065.9,2065.3,0.001]
[1772468733964,6.30891153,2065.8,2065.3,0.001]
[1772468734182,3.41833091,2065.8,2065.3,0.001]
[1772468735389,1.2102435,2065.7,2065.3,0.001]
[1772468736172,4.84060568,2065.9,2065.3,0.001]
[1772468736374,1.21000919,2066.1,2065.3,0.001]
[1772468736581,4.07067164,2066.0,2065.3,0.001]
[1772468736787,1.183,2066.0,2065.3,0.001]